[Event "Caplin Hastings Masters 2023-24"]
[Site "Hastings"]
[Date "2023.12.30"]
[Round "3.35"]
[White "Ahn, Sungmin"]
[Black "Steiners, Emils"]
[Result "1-0"]
[ECO "C18"]
[WhiteElo "1836"]
[BlackElo "1993"]
[Annotator "NA"]
[PlyCount "79"]
[EventDate "2023.12.18"]
[EventType "swiss"]
[EventCountry "ENG"]
[SourceTitle "playchess.com"]
[Source "ChessBase"]
[SourceQuality "1"]
[TimeControl "40/6000+30:3000+30"]

1. e4 {[%emt 0:01:03]} e6 {[%emt 0:00:00]} 2. d4 {[%emt 0:00:00]} d5 {[%emt 0:00:00]} 3. Nc3 {[%emt 0:00:00]} Bb4 {[%emt 0:00:00]} 4. e5 {[%emt 0:00:43]} c5 {[%emt 0:00:00]} 5. a3 {[%emt 0:00:10]} Bxc3+ {[%emt 0:00:00]} 6. bxc3 {[%emt 0:00:04]} Ne7 {[%emt 0:00:00]} 7. Qg4 {[%emt 0:00:06]} Qc7 {[%emt 0:00:00]} 8. Bd3 {[%emt 0:00:05]} cxd4 {[%emt 0:00:46]} 9. Ne2 {[%emt 0:00:39]} dxc3 {[%emt 0:00:50]} 10. Qxg7 {[%emt 0:00:12]} Rg8 {[%emt 0:00:09]} 11. Qxh7 {[%emt 0:00:36]} Qxe5 {[%emt 0:00:39]} 12. Bf4 {[%emt 0:00:25]} Qf6 {[%emt 0:01:24]} 13. h4 {[%emt 0:00:15]} Nd7 {[%emt 0:02:02]} 14. Bg5 {[%emt 0:05:42]} Qh8 {[%emt 0:00:49]} 15. Qxh8 {[%emt 0:02:35]} Rxh8 {[%emt 0:00:02]} 16. Nxc3 {[%emt 0:00:49]} a6 {[%emt 0:05:36]} 17. O-O-O {[%emt 0:03:26]} b5 {[%emt 0:04:17]} 18. h5 {[%emt 0:06:54]} Bb7 {[%emt 0:02:56]} 19. h6 {[%emt 0:04:12]} f6 {[%emt 0:03:09]} 20. Bd2 {[%emt 0:00:49]} Nc5 {[%emt 0:02:40]} 21. Be2 {[%emt 0:12:51]} e5 {[%emt 0:10:01]} 22. Bh5+ {[%emt 0:06:13]} Kf8 {[%emt 0:10:21]} 23. f3 {[%emt 0:00:59]} d4 {[%emt 0:03:41]} 24. Ne4 {[%emt 0:08:30]} Nxe4 {[%emt 0:04:25]} 25. fxe4 {[%emt 0:00:04]} Bxe4 {[%emt 0:01:24]} 26. Rhf1 {[%emt 0:07:27]} f5 {[%emt 0:05:37]} 27. Rde1 {[%emt 0:01:13]} Kg8 {[%emt 0:11:40]} 28. Bg5 {[%emt 0:25:10]} Rh7 {[%emt 0:18:39]} 29. g4 {[%emt 0:00:40]} Rc8 {[%emt 0:01:33]} 30. Rf2 {[%emt 0:01:12]} Nd5 {[%emt 0:07:24]} 31. gxf5 {[%emt 0:06:00]} Nc3 {[%emt 0:02:15]} 32. Bg6 {[%emt 0:03:14]} Rhc7 {[%emt 0:00:39]} 33. Bf6 {[%emt 0:04:20]} d3 {[%emt 0:04:13]} 34. h7+ {[%emt 0:02:42]} Rxh7 {[%emt 0:00:07]} 35. Bxh7+ {[%emt 0:00:18]} Kf7 {[%emt 0:00:28]} 36. Bxe5 {[%emt 0:02:25]} Na2+ {[%emt 0:02:31]} 37. Kb2 {[%emt 0:01:24]} dxc2 {[%emt 0:00:49]} 38. Bg6+ {[%emt 0:00:36]} Kg8 {[%emt 0:00:19]} 39. Rh2 {[%emt 0:02:31]} c1=Q+ {[%emt 0:01:16]} 40. Rxc1 {[%emt 0:00:18]} 1-0

[Event "Caplin Hastings Masters 2023-24"]
[Site "Hastings"]
[Date "2023.12.30"]
[Round "3.36"]
[White "Banerjee, Supratit"]
[Black "Flynn, David"]
[Result "1-0"]
[ECO "B22"]
[WhiteElo "1974"]
[BlackElo "1791"]
[Annotator "NA"]
[PlyCount "57"]
[EventDate "2023.12.18"]
[EventType "swiss"]
[EventCountry "ENG"]
[SourceTitle "playchess.com"]
[Source "ChessBase"]
[SourceQuality "1"]
[TimeControl "40/6000+30:3000+30"]

1. e4 {[%emt 0:00:03]} c5 {[%emt 0:07:56]} 2. c3 {[%emt 0:00:18]} Nf6 {[%emt 0:00:23]} 3. e5 {[%emt 0:00:09]} Nd5 {[%emt 0:00:15]} 4. d4 {[%emt 0:00:36]} cxd4 {[%emt 0:00:08]} 5. cxd4 {[%emt 0:00:07]} d6 {[%emt 0:00:07]} 6. Nf3 {[%emt 0:00:11]} Nc6 {[%emt 0:00:13]} 7. Bc4 {[%emt 0:00:16]} Nb6 {[%emt 0:00:05]} 8. Bb5 {[%emt 0:00:26]} dxe5 {[%emt 0:00:13]} 9. Nxe5 {[%emt 0:00:14]} Bd7 {[%emt 0:00:09]} 10. Nxd7 {[%emt 0:01:25]} Qxd7 {[%emt 0:00:08]} 11. Nc3 {[%emt 0:00:25]} e6 {[%emt 0:00:30]} 12. O-O {[%emt 0:00:24]} Rd8 {[%emt 0:00:35]} 13. Be3 {[%emt 0:01:44]} Be7 {[%emt 0:00:23]} 14. Qg4 {[%emt 0:04:29]} O-O {[%emt 0:01:16]} 15. Rad1 {[%emt 0:01:04]} Rfe8 {[%emt 0:14:23]} 16. Rfe1 {[%emt 0:05:00]} Nd5 {[%emt 0:07:08]} 17. Bh6 {[%emt 0:08:33]} g6 {[%emt 0:02:34]} 18. Be3 {[%emt 0:02:25]} Rc8 {[%emt 0:16:12]} 19. Ba4 {[%emt 0:03:51]} Red8 {[%emt 0:04:07]} 20. Nxd5 {[%emt 0:06:53]} Qxd5 {[%emt 0:00:05]} 21. Bb3 {[%emt 0:00:32]} Qb5 {[%emt 0:02:45]} 22. Bxe6 {[%emt 0:04:10]} fxe6 {[%emt 0:02:04]} 23. Qxe6+ {[%emt 0:00:11]} Kg7 {[%emt 0:04:52]} 24. d5 {[%emt 0:01:29]} Bb4 {[%emt 0:06:23]} 25. dxc6 {[%emt 0:02:14]} Bxe1 {[%emt 0:02:28]} 26. Qe7+ {[%emt 0:00:11]} Kg8 {[%emt 0:01:56]} 27. Rxd8+ {[%emt 0:00:11]} Rxd8 {[%emt 0:00:05]} 28. Qxd8+ {[%emt 0:00:17]} Kf7 {[%emt 0:00:33]} 29. c7 {[%emt 0:00:32]} 1-0

[Event "Caplin Hastings Masters 2023-24"]
[Site "Hastings"]
[Date "2023.12.30"]
[Round "3.37"]
[White "Blades, Kit"]
[Black "Gordon, Sean"]
[Result "1-0"]
[ECO "B22"]
[WhiteElo "1771"]
[BlackElo "1968"]
[Annotator "NA RC"]
[PlyCount "103"]
[EventDate "2023.12.18"]
[EventType "swiss"]
[EventCountry "ENG"]
[SourceTitle "playchess.com"]
[Source "ChessBase"]
[SourceQuality "1"]
[TimeControl "40/6000+30:3000+30"]

1. e4 {[%emt 0:00:05]} c5 {[%emt 0:00:14]} 2. Nf3 {[%emt 0:00:05]} e6 {[%emt 0:00:54]} 3. c3 {[%emt 0:00:06]} Nf6 {[%emt 0:00:30]} 4. e5 {[%emt 0:00:05]} Nd5 {[%emt 0:00:07]} 5. d4 {[%emt 0:00:04]} cxd4 {[%emt 0:00:30]} 6. cxd4 {[%emt 0:00:08]} d6 {[%emt 0:00:55]} 7. Nc3 {[%emt 0:01:27]} Nxc3 {[%emt 0:04:41]} 8. bxc3 {[%emt 0:00:12]} Nc6 {[%emt 0:00:46]} 9. Bd3 {[%emt 0:09:54]} dxe5 {[%emt 0:14:29]} 10. dxe5 {[%emt 0:00:27]} Be7 {[%emt 0:01:30]} 11. Qe2 {[%emt 0:03:01]} Bd7 {[%emt 0:10:34]} 12. O-O {[%emt 0:08:16]} Qc7 {[%emt 0:10:24]} 13. Bf4 {[%emt 0:02:49]} O-O {[%emt 0:04:04]} 14. Rfe1 {[%emt 0:10:03]} Qa5 {[%emt 0:21:05]} 15. Rab1 {[%emt 0:14:56]} b6 {[%emt 0:02:47]} 16. Nd2 {[%emt 0:06:37]} Rac8 {[%emt 0:08:27]} 17. Qh5 {[%emt 0:09:48]} g6 {[%emt 0:01:19]} 18. Qh6 {[%emt 0:00:44]} Qxc3 {[%emt 0:11:42]} 19. Ne4 {[%emt 0:00:25]} Qd4 {[%emt 0:02:05]} 20. Bg5 {[%emt 0:04:00]} Qxe5 {[%emt 0:01:24]} 21. Nf6+ {[%emt 0:02:08]} Bxf6 {[%emt 0:00:12]} 22. Rxe5 {[%emt 0:00:05]} Bxe5 {[%emt 0:00:05]} 23. Rd1 {[%emt 0:00:51]} Bg7 {[%emt 0:01:14]} 24. Qh3 {[%emt 0:01:36]} Nb4 {[%emt 0:01:55]} 25. Be7 {[%emt 0:00:58]} Nxd3 {[%emt 0:02:39]} 26. Qxd3 {[%emt 0:01:15]} Ba4 {[%emt 0:01:42]} 27. Bxf8 {[%emt 0:00:17]} Bxd1 {[%emt 0:00:27]} 28. Bxg7 {[%emt 0:00:40]} Be2 {[%emt 0:00:33]} 29. Qd2 {[%emt 0:00:23]} Kxg7 {[%emt 0:00:26]} 30. h4 {[%emt 0:00:35]} Bc4 {[%emt 0:02:32]} 31. Qd7 {[%emt 0:00:41]} Rc5 {[%emt 0:00:10]} 32. Qxa7 {[%emt 0:00:13]} Bd5 {[%emt 0:00:10]} 33. Qxb6 {[%emt 0:01:55]} Rc4 {[%emt 0:00:43]} 34. h5 {[%emt 0:02:50]} gxh5 {[%emt 0:00:10]} 35. Qe3 {[%emt 0:02:45]} Kg6 {[%emt 0:01:36]} 36. Qd3+ {[%emt 0:03:06]} Kg7 {[%emt 0:00:21]} 37. Qd1 {[%emt 0:00:45]} Rg4 {[%emt 0:00:23]} 38. f3 {[%emt 0:00:15]} Rb4 {[%emt 0:02:20]} 39. a4 {[%emt 0:02:05]} f6 {[%emt 0:01:01]} 40. a5 {[%emt 0:01:46]} Rb2 {[%emt 0:00:46]} 41. a6 {[%emt 0:56:30]} Ra2 {[%emt 0:50:21]} 42. Qd3 {[%emt 0:00:36]} h4 {[%emt 0:00:00]} 43. Kh2 {[%emt 0:00:00]} Ra1 {[%emt 0:00:00]} 44. Qb5 {[%emt 0:00:00]} Kg6 {[%emt 0:00:00]} 45. Qe8+ {[%emt 0:00:00]} Kg7 {[%emt 0:00:00]} 46. Qe7+ {[%emt 0:00:00]} Kg6 {[%emt 0:00:00]} 47. a7 {[%emt 0:00:00]} f5 {[%emt 0:00:00]} 48. Qe8+ {[%emt 0:00:00]} Kg7 {[%emt 0:00:00]} 49. Qb8 {[%emt 0:00:00]} Kh6 {[%emt 0:00:00]} 50. Qf8+ {[%emt 0:00:00]} Kg6 {[%emt 0:00:27]} 51. Qg8+ {[%emt 0:00:00]} Kh6 {[%emt 0:00:39]} 52. f4 {[%emt 0:00:00]} 1-0

[Event "Caplin Hastings Masters 2023-24"]
[Site "Hastings"]
[Date "2023.12.30"]
[Round "3.38"]
[White "Park, Inchan"]
[Black "Batchelor, Paul A"]
[Result "1/2-1/2"]
[ECO "E65"]
[WhiteElo "1768"]
[BlackElo "1937"]
[Annotator "RC"]
[PlyCount "129"]
[EventDate "2023.12.18"]
[EventType "swiss"]
[EventCountry "ENG"]
[SourceTitle "playchess.com"]
[Source "ChessBase"]
[SourceQuality "1"]
[TimeControl "40/6000+30:3000+30"]

1. d4 {[%emt 0:00:02]} Nf6 {[%emt 0:00:12]} 2. Nf3 {[%emt 0:00:03]} g6 {[%emt 0:00:05]} 3. g3 {[%emt 0:00:03]} Bg7 {[%emt 0:02:45]} 4. Bg2 {[%emt 0:00:05]} O-O {[%emt 0:00:17]} 5. O-O {[%emt 0:00:05]} d6 {[%emt 0:00:27]} 6. b3 {[%emt 0:00:04]} c5 {[%emt 0:04:29]} 7. Bb2 {[%emt 0:00:30]} cxd4 {[%emt 0:01:42]} 8. Nxd4 {[%emt 0:00:46]} a6 {[%emt 0:00:20]} 9. c4 {[%emt 0:02:24]} Qc7 {[%emt 0:06:46]} 10. Nc3 {[%emt 0:01:09]} Nbd7 {[%emt 0:21:55]} 11. Rc1 {[%emt 0:00:54]} Nb6 {[%emt 0:09:14]} 12. h3 {[%emt 0:18:43]} Bd7 {[%emt 0:01:22]} 13. Qd2 {[%emt 0:06:22]} Rac8 {[%emt 0:01:00]} 14. Rfd1 {[%emt 0:02:52]} Rfd8 {[%emt 0:00:55]} 15. a4 {[%emt 0:06:45]} Qb8 {[%emt 0:01:43]} 16. e4 {[%emt 0:05:29]} h5 {[%emt 0:05:07]} 17. f4 {[%emt 0:17:35]} Kh7 {[%emt 0:02:29]} 18. Rf1 {[%emt 0:05:45]} Rf8 {[%emt 0:02:45]} 19. Rce1 {[%emt 0:00:19]} e5 {[%emt 0:10:05]} 20. Nf3 {[%emt 0:02:09]} exf4 {[%emt 0:02:47]} 21. Qxf4 {[%emt 0:00:45]} Be6 {[%emt 0:04:40]} 22. Qh4 {[%emt 0:01:34]} Rce8 {[%emt 0:03:16]} 23. Ng5+ {[%emt 0:06:35]} Kg8 {[%emt 0:00:11]} 24. Nd5 {[%emt 0:06:57]} Nfxd5 {[%emt 0:11:54]} 25. Bxg7 {[%emt 0:00:26]} Kxg7 {[%emt 0:00:09]} 26. cxd5 {[%emt 0:00:11]} Bd7 {[%emt 0:00:38]} 27. g4 {[%emt 0:01:25]} f6 {[%emt 0:01:13]} 28. Nf3 {[%emt 0:01:36]} hxg4 {[%emt 0:01:43]} 29. hxg4 {[%emt 0:00:08]} Rh8 {[%emt 0:01:30]} 30. Qg3 {[%emt 0:00:04]} Qa7 {[%emt 0:02:17]} 31. Rf2 {[%emt 0:00:07]} Nc8 {[%emt 0:00:27]} 32. Qf4 {[%emt 0:01:38]} Ref8 {[%emt 0:00:16]} 33. g5 {[%emt 0:10:03]} Qb6 {[%emt 0:02:12]} 34. gxf6+ {[%emt 0:02:24]} Rxf6 {[%emt 0:00:08]} 35. Qg5 {[%emt 0:00:23]} Rhf8 {[%emt 0:01:47]} 36. Ref1 {[%emt 0:06:14]} Qc5 {[%emt 0:03:09]} 37. Nh4 {[%emt 0:02:34]} Ne7 {[%emt 0:01:15]} 38. Bf3 {[%emt 0:01:33]} Qd4 {[%emt 0:01:11]} 39. Rd1 {[%emt 0:00:40]} Qe5 {[%emt 0:00:35]} 40. Qxe5 {[%emt 0:00:47]} dxe5 {[%emt 0:00:04]} 41. Rc2 {[%emt 0:51:23]} Rf4 {[%emt 0:14:48]} 42. Rc7 {[%emt 0:00:00]} Rd8 {[%emt 0:00:09]} 43. Rxb7 {[%emt 0:00:00]} Rxh4 {[%emt 0:00:07]} 44. Rc1 {[%emt 0:00:00]} Ng8 {[%emt 0:03:04]} 45. Rcc7 {[%emt 0:00:00]} Nf6 {[%emt 0:00:06]} 46. Ra7 {[%emt 0:00:00]} Rf4 {[%emt 0:01:50]} 47. Bg2 {[%emt 0:00:00]} Kf8 {[%emt 0:06:26]} 48. Rxa6 {[%emt 0:00:00]} Ke8 {[%emt 0:04:55]} 49. Rc4 {[%emt 0:00:00]} Rb8 {[%emt 0:00:52]} 50. b4 {[%emt 0:00:00]} Nxd5 {[%emt 0:06:30]} 51. b5 {[%emt 0:00:00]} Ne3 {[%emt 0:06:00]} 52. Rb4 {[%emt 0:00:00]} Ke7 {[%emt 0:03:07]} 53. Rxg6 {[%emt 0:00:00]} Rf6 {[%emt 0:01:07]} 54. Rg3 {[%emt 0:00:00]} Nc2 {[%emt 0:01:09]} 55. Rb2 {[%emt 0:00:00]} Nd4 {[%emt 0:00:09]} 56. Bh3 {[%emt 0:00:00]} Be8 {[%emt 0:02:08]} 57. Rc3 {[%emt 0:00:00]} Bg6 {[%emt 0:02:36]} 58. Rc7+ {[%emt 0:00:00]} Ke8 {[%emt 0:00:46]} 59. a5 {[%emt 0:00:00]} Rxb5 {[%emt 0:02:19]} 60. Rxb5 {[%emt 0:00:00]} Nxb5 {[%emt 0:00:04]} 61. Rc5 {[%emt 0:00:00]} Nd4 {[%emt 0:00:41]} 62. Rxe5+ {[%emt 0:00:00]} Kf8 {[%emt 0:00:15]} 63. Kg2 {[%emt 0:00:00]} Nb3 {[%emt 0:00:42]} 64. Bc8 {[%emt 0:00:00]} Nxa5 {[%emt 0:03:24]} 65. Rxa5 {[%emt 0:00:00]} 1/2-1/2

[Event "Caplin Hastings Masters 2023-24"]
[Site "Hastings"]
[Date "2023.12.30"]
[Round "3.39"]
[White "Moracchini, Margaux"]
[Black "Alcindor, Samuel"]
[Result "0-1"]
[ECO "B10"]
[WhiteElo "1922"]
[BlackElo "1714"]
[Annotator "RC"]
[PlyCount "99"]
[EventDate "2023.12.18"]
[EventType "swiss"]
[EventCountry "ENG"]
[SourceTitle "playchess.com"]
[Source "ChessBase"]
[SourceQuality "1"]
[TimeControl "40/6000+30:3000+30"]

1. e4 {[%emt 0:04:39]} c6 {[%emt 0:00:13]} 2. d3 {[%emt 0:03:01]} d5 {[%emt 0:03:07]} 3. Nf3 {[%emt 0:00:14]} dxe4 {[%emt 0:02:32]} 4. dxe4 {[%emt 0:00:06]} Qxd1+ {[%emt 0:00:08]} 5. Kxd1 {[%emt 0:00:02]} Bg4 {[%emt 0:02:23]} 6. Be3 {[%emt 0:01:12]} Nd7 {[%emt 0:02:19]} 7. c3 {[%emt 0:02:39]} e6 {[%emt 0:02:21]} 8. Kc2 {[%emt 0:01:35]} Ngf6 {[%emt 0:00:43]} 9. Nfd2 {[%emt 0:01:08]} Bh5 {[%emt 0:08:54]} 10. f3 {[%emt 0:00:23]} Bg6 {[%emt 0:00:28]} 11. Nb3 {[%emt 0:08:14]} Bd6 {[%emt 0:09:56]} 12. N1d2 {[%emt 0:06:50]} O-O {[%emt 0:04:59]} 13. g4 {[%emt 0:06:28]} Nd5 {[%emt 0:01:57]} 14. Nc4 {[%emt 0:07:51]} Nxe3+ {[%emt 0:02:44]} 15. Nxe3 {[%emt 0:00:04]} Bc7 {[%emt 0:05:48]} 16. Rd1 {[%emt 0:06:54]} Ne5 {[%emt 0:01:49]} 17. Be2 {[%emt 0:03:43]} Rad8 {[%emt 0:08:16]} 18. Nc4 {[%emt 0:11:26]} Nxg4 {[%emt 0:07:27]} 19. fxg4 {[%emt 0:01:47]} Bxe4+ {[%emt 0:00:07]} 20. Kc1 {[%emt 0:05:59]} Bf4+ {[%emt 0:00:08]} 21. Ncd2 {[%emt 0:00:28]} Bxh1 {[%emt 0:00:21]} 22. Rxh1 {[%emt 0:00:03]} Rd7 {[%emt 0:11:00]} 23. Kc2 {[%emt 0:01:07]} Rfd8 {[%emt 0:00:18]} 24. Ne4 {[%emt 0:01:23]} Rd5 {[%emt 0:03:00]} 25. Bc4 {[%emt 0:15:35]} Re5 {[%emt 0:01:51]} 26. Nf2 {[%emt 0:07:48]} a5 {[%emt 0:09:55]} 27. Nd4 {[%emt 0:04:37]} Be3 {[%emt 0:02:21]} 28. Nf3 {[%emt 0:00:15]} Rc5 {[%emt 0:00:45]} 29. Nd1 {[%emt 0:00:05]} Rxc4 {[%emt 0:05:08]} 30. Nxe3 {[%emt 0:00:06]} Rf4 {[%emt 0:00:54]} 31. Nd2 {[%emt 0:02:17]} Rf2 {[%emt 0:00:27]} 32. Nef1 {[%emt 0:00:23]} f5 {[%emt 0:02:05]} 33. gxf5 {[%emt 0:00:31]} exf5 {[%emt 0:00:09]} 34. Rg1 {[%emt 0:01:00]} Kf7 {[%emt 0:00:32]} 35. Rg3 {[%emt 0:00:15]} Re8 {[%emt 0:02:13]} 36. Rd3 {[%emt 0:02:12]} Re1 {[%emt 0:00:56]} 37. Ne3 {[%emt 0:01:23]} f4 {[%emt 0:02:14]} 38. Nec4 {[%emt 0:01:09]} Rxh2 {[%emt 0:04:34]} 39. Nxa5 {[%emt 0:00:26]} g5 {[%emt 0:01:06]} 40. Nxb7 {[%emt 0:03:36]} h5 {[%emt 0:02:39]} 41. a4 {[%emt 0:47:59]} g4 {[%emt 0:50:46]} 42. Kb3 {[%emt 0:00:16]} Ree2 {[%emt 0:00:21]} 43. Nc4 {[%emt 0:00:30]} f3 {[%emt 0:00:55]} 44. Rd4 {[%emt 0:00:31]} Kg6 {[%emt 0:00:00]} 45. a5 {[%emt 0:00:00]} Kg5 {[%emt 0:00:00]} 46. a6 {[%emt 0:00:00]} f2 {[%emt 0:00:00]} 47. a7 {[%emt 0:00:00]} f1=Q {[%emt 0:00:00]} 48. a8=Q {[%emt 0:02:30]} Qf6 {[%emt 0:00:00]} 49. Qg8+ {[%emt 0:00:00]} Kh4 {[%emt 0:00:00]} 50. Nbd6 {[%emt 0:00:00]} 0-1

[Event "Caplin Hastings Masters 2023-24"]
[Site "Hastings"]
[Date "2023.12.30"]
[Round "3.40"]
[White "Fryer, David W"]
[Black "Butt, Laurence"]
[Result "1-0"]
[ECO "B00"]
[WhiteElo "1914"]
[BlackElo "1688"]
[Annotator "NA RC"]
[PlyCount "103"]
[EventDate "2023.12.18"]
[EventType "swiss"]
[EventCountry "ENG"]
[SourceTitle "playchess.com"]
[Source "ChessBase"]
[SourceQuality "1"]
[TimeControl "40/6000+30:3000+30"]

1. e4 {[%emt 0:00:03]} Nc6 {[%emt 0:04:29]} 2. Nf3 {[%emt 0:00:07]} f5 {[%emt 0:00:40]} 3. d3 {[%emt 0:02:06]} d6 {[%emt 0:00:35]} 4. Nc3 {[%emt 0:00:41]} Nf6 {[%emt 0:00:28]} 5. h3 {[%emt 0:04:07]} e5 {[%emt 0:00:59]} 6. g3 {[%emt 0:04:34]} Be7 {[%emt 0:00:19]} 7. Bg2 {[%emt 0:00:44]} O-O {[%emt 0:00:13]} 8. O-O {[%emt 0:04:19]} h6 {[%emt 0:04:32]} 9. Nd5 {[%emt 0:06:45]} Be6 {[%emt 0:01:28]} 10. Nxe7+ {[%emt 0:02:47]} Qxe7 {[%emt 0:00:18]} 11. Nh4 {[%emt 0:03:18]} Qd7 {[%emt 0:02:09]} 12. exf5 {[%emt 0:00:47]} Bxf5 {[%emt 0:01:09]} 13. Nxf5 {[%emt 0:00:35]} Qxf5 {[%emt 0:00:20]} 14. c3 {[%emt 0:01:01]} Rab8 {[%emt 0:05:51]} 15. Be3 {[%emt 0:07:35]} Ne7 {[%emt 0:03:45]} 16. Bxa7 {[%emt 0:02:14]} Rbd8 {[%emt 0:03:29]} 17. Be3 {[%emt 0:05:48]} d5 {[%emt 0:02:19]} 18. Qe2 {[%emt 0:08:29]} Ng6 {[%emt 0:07:22]} 19. a4 {[%emt 0:02:07]} Rfe8 {[%emt 0:02:06]} 20. Bd2 {[%emt 0:03:28]} e4 {[%emt 0:02:57]} 21. d4 {[%emt 0:00:39]} h5 {[%emt 0:14:14]} 22. b4 {[%emt 0:03:56]} h4 {[%emt 0:02:35]} 23. Be3 {[%emt 0:00:31]} Qe6 {[%emt 0:01:04]} 24. g4 {[%emt 0:06:19]} Qd6 {[%emt 0:02:30]} 25. g5 {[%emt 0:04:26]} Nd7 {[%emt 0:01:04]} 26. f4 {[%emt 0:02:32]} exf3 {[%emt 0:02:44]} 27. Qxf3 {[%emt 0:00:45]} c6 {[%emt 0:04:01]} 28. a5 {[%emt 0:01:57]} Re7 {[%emt 0:04:48]} 29. Bd2 {[%emt 0:06:31]} Ndf8 {[%emt 0:04:41]} 30. Rf2 {[%emt 0:03:08]} Rde8 {[%emt 0:01:27]} 31. Raf1 {[%emt 0:00:54]} Ne6 {[%emt 0:03:28]} 32. Qh5 {[%emt 0:01:17]} Nef8 {[%emt 0:03:48]} 33. Qg4 {[%emt 0:03:28]} Ne6 {[%emt 0:02:05]} 34. Qf5 {[%emt 0:04:49]} Nef8 {[%emt 0:00:19]} 35. Bf4 {[%emt 0:01:12]} Nxf4 {[%emt 0:01:37]} 36. Qxf4 {[%emt 0:00:49]} Qxf4 {[%emt 0:00:11]} 37. Rxf4 {[%emt 0:00:09]} Re3 {[%emt 0:03:45]} 38. Rf7 {[%emt 0:03:06]} R3e7 {[%emt 0:03:00]} 39. Rxe7 {[%emt 0:00:33]} Rxe7 {[%emt 0:00:06]} 40. b5 {[%emt 0:00:49]} Ne6 {[%emt 0:05:38]} 41. g6 {[%emt 0:51:24]} Nc7 {[%emt 0:52:55]} 42. Rf7 {[%emt 0:09:08]} Rxf7 {[%emt 0:01:45]} 43. gxf7+ {[%emt 0:00:07]} Kxf7 {[%emt 0:00:07]} 44. a6 {[%emt 0:00:19]} Nxa6 {[%emt 0:01:10]} 45. bxa6 {[%emt 0:00:13]} bxa6 {[%emt 0:00:06]} 46. Bf3 {[%emt 0:01:24]} Ke6 {[%emt 0:03:47]} 47. Kf2 {[%emt 0:00:20]} a5 {[%emt 0:02:31]} 48. Bd1 {[%emt 0:00:18]} Kd6 {[%emt 0:00:00]} 49. Ke3 {[%emt 0:00:00]} c5 {[%emt 0:00:00]} 50. Kf4 {[%emt 0:00:00]} cxd4 {[%emt 0:00:00]} 51. cxd4 {[%emt 0:00:00]} Ke6 {[%emt 0:00:00]} 52. Kg5 {[%emt 0:00:00]} 1-0

[Event "Caplin Hastings Masters 2023-24"]
[Site "Hastings"]
[Date "2023.12.30"]
[Round "3.41"]
[White "Keely, Leo A"]
[Black "Nainika, Gupta"]
[Result "0-1"]
[ECO "B09"]
[WhiteElo "1908"]
[BlackElo "1543"]
[Annotator "NA RC"]
[PlyCount "102"]
[EventDate "2023.12.18"]
[EventType "swiss"]
[EventCountry "ENG"]
[SourceTitle "playchess.com"]
[Source "ChessBase"]
[SourceQuality "1"]
[TimeControl "40/6000+30:3000+30"]

1. e4 {[%emt 0:00:06]} d6 {[%emt 0:00:31]} 2. d4 {[%emt 0:00:13]} Nf6 {[%emt 0:00:51]} 3. Nc3 {[%emt 0:00:10]} g6 {[%emt 0:01:20]} 4. f4 {[%emt 0:00:11]} Bg7 {[%emt 0:01:07]} 5. Nf3 {[%emt 0:00:26]} O-O {[%emt 0:01:01]} 6. Bd3 {[%emt 0:02:43]} Na6 {[%emt 0:03:24]} 7. O-O {[%emt 0:05:34]} c5 {[%emt 0:03:20]} 8. d5 {[%emt 0:06:04]} Qa5 {[%emt 0:20:48]} 9. Kh1 {[%emt 0:13:38]} Bd7 {[%emt 0:06:14]} 10. Bd2 {[%emt 0:04:11]} Qc7 {[%emt 0:02:00]} 11. e5 {[%emt 0:04:54]} dxe5 {[%emt 0:08:50]} 12. Nxe5 {[%emt 0:01:26]} Nb4 {[%emt 0:02:14]} 13. Bc4 {[%emt 0:03:51]} Bf5 {[%emt 0:02:03]} 14. Nb5 {[%emt 0:06:26]} Qb6 {[%emt 0:03:59]} 15. Bxb4 {[%emt 0:09:58]} cxb4 {[%emt 0:01:12]} 16. Qd4 {[%emt 0:02:17]} Qxd4 {[%emt 0:01:29]} 17. Nxd4 {[%emt 0:00:48]} Be4 {[%emt 0:00:22]} 18. a3 {[%emt 0:10:21]} bxa3 {[%emt 0:01:32]} 19. Rxa3 {[%emt 0:00:09]} Bxd5 {[%emt 0:00:35]} 20. Be2 {[%emt 0:03:54]} a6 {[%emt 0:01:39]} 21. Ndf3 {[%emt 0:04:03]} Rad8 {[%emt 0:04:21]} 22. c4 {[%emt 0:00:45]} Be6 {[%emt 0:02:56]} 23. c5 {[%emt 0:01:34]} Nd5 {[%emt 0:02:17]} 24. g3 {[%emt 0:03:40]} f6 {[%emt 0:08:42]} 25. Nd3 {[%emt 0:04:17]} Nc7 {[%emt 0:08:47]} 26. c6 {[%emt 0:01:15]} bxc6 {[%emt 0:00:40]} 27. Nc5 {[%emt 0:00:23]} Bd5 {[%emt 0:00:30]} 28. Kg1 {[%emt 0:02:29]} e5 {[%emt 0:00:55]} 29. Nxa6 {[%emt 0:01:24]} Nxa6 {[%emt 0:00:46]} 30. Rxa6 {[%emt 0:01:01]} exf4 {[%emt 0:00:48]} 31. gxf4 {[%emt 0:00:45]} Rfe8 {[%emt 0:02:24]} 32. Bd1 {[%emt 0:02:29]} Bc4 {[%emt 0:01:23]} 33. Rxc6 {[%emt 0:01:20]} Bxf1 {[%emt 0:00:18]} 34. Bb3+ {[%emt 0:00:09]} Kf8 {[%emt 0:00:10]} 35. Kxf1 {[%emt 0:03:01]} Re3 {[%emt 0:01:14]} 36. Rc3 {[%emt 0:00:49]} Rxc3 {[%emt 0:00:16]} 37. bxc3 {[%emt 0:00:07]} Rd3 {[%emt 0:00:50]} 38. Nd4 {[%emt 0:01:17]} Rxc3 {[%emt 0:01:44]} 39. f5 {[%emt 0:02:31]} gxf5 {[%emt 0:02:14]} 40. Ne6+ {[%emt 0:02:08]} Ke7 {[%emt 0:00:44]} 41. Nxg7 {[%emt 0:53:37]} Rxb3 {[%emt 0:50:17]} 42. Nxf5+ {[%emt 0:00:09]} Kf7 {[%emt 0:00:17]} 43. Kg2 {[%emt 0:01:27]} Kg6 {[%emt 0:01:08]} 44. Ng3 {[%emt 0:00:00]} f5 {[%emt 0:00:00]} 45. Kf2 {[%emt 0:00:00]} Kg5 {[%emt 0:00:00]} 46. Ne2 {[%emt 0:00:00]} Kg4 {[%emt 0:00:00]} 47. Nd4 {[%emt 0:00:00]} Rb2+ {[%emt 0:00:00]} 48. Kg1 {[%emt 0:00:00]} f4 {[%emt 0:00:00]} 49. Ne6 {[%emt 0:00:00]} Rd2 {[%emt 0:00:00]} 50. h3+ {[%emt 0:00:00]} Kg3 {[%emt 0:00:00]} 51. Kf1 {[%emt 0:00:00]} f3 {[%emt 0:00:00]} 0-1